[Event "Early-Titled-Tuesday-Blitz-September-12-2023"]
[Site "Chess.com"]
[Date "2023.09.12"]
[Round "4"]
[White "cottage_cheese"]
[Black "bennyficial"]
[Result "1-0"]
[WhiteElo "2322"]
[BlackElo "2146"]
[TimeControl "180+1"]
[EndTime "8:38:43 PDT"]
[Termination "cottage_cheese won by resignation"]

1. e4 {[%clk 0:03:00.9]} 1... c5 {[%clk 0:02:59.5]} 2. Nf3 {[%clk 0:03:00.8]}
2... g6 {[%clk 0:02:59.9]} 3. c4 {[%clk 0:02:57.5]} 3... Bg7 {[%clk 0:02:58.7]}
4. d4 {[%clk 0:02:57.6]} 4... cxd4 {[%clk 0:02:36.7]} 5. Nxd4 {[%clk 0:02:58.5]}
5... Nc6 {[%clk 0:02:37]} 6. Be3 {[%clk 0:02:56.8]} 6... Nf6 {[%clk 0:02:35.8]}
7. Nc3 {[%clk 0:02:51.9]} 7... O-O {[%clk 0:02:35.3]} 8. Be2 {[%clk 0:02:48.5]}
8... b6 {[%clk 0:02:26.3]} 9. O-O {[%clk 0:02:46.7]} 9... Bb7 {[%clk 0:02:26]}
10. Nc2 {[%clk 0:02:42.4]} 10... Rc8 {[%clk 0:02:19.2]} 11. b3 {[%clk
0:02:39.9]} 11... d6 {[%clk 0:01:51.2]} 12. Qd2 {[%clk 0:02:36.3]} 12... Re8
{[%clk 0:01:48.4]} 13. Rad1 {[%clk 0:02:32]} 13... Ne5 {[%clk 0:01:41.6]} 14. f3
{[%clk 0:02:27.1]} 14... Qc7 {[%clk 0:01:31.3]} 15. h3 {[%clk 0:02:23.1]} 15...
Qb8 {[%clk 0:01:16.4]} 16. f4 {[%clk 0:02:17.7]} 16... Ned7 {[%clk 0:01:16.1]}
17. Bf3 {[%clk 0:02:16.6]} 17... a5 {[%clk 0:01:09.6]} 18. Rde1 {[%clk 0:01:20]}
18... Nc5 {[%clk 0:01:07.8]} 19. Bf2 {[%clk 0:01:13.5]} 19... Qa8 {[%clk
0:01:03.8]} 20. Nd5 {[%clk 0:01:03.2]} 20... Nxd5 {[%clk 0:00:50.8]} 21. cxd5
{[%clk 0:00:54.6]} 21... Ba6 {[%clk 0:00:45.2]} 22. Bxc5 {[%clk 0:00:50.2]}
22... bxc5 {[%clk 0:00:39.3]} 23. Be2 {[%clk 0:00:44.2]} 23... Bxe2 {[%clk
0:00:36.6]} 24. Qxe2 {[%clk 0:00:45.1]} 24... a4 {[%clk 0:00:36.2]} 25. Ne3
{[%clk 0:00:36.5]} 25... axb3 {[%clk 0:00:34.6]} 26. axb3 {[%clk 0:00:37.4]}
26... Qb7 {[%clk 0:00:34.2]} 27. Rb1 {[%clk 0:00:23.6]} 27... Ra8 {[%clk
0:00:33.6]} 28. Nc4 {[%clk 0:00:21.8]} 28... Qb4 {[%clk 0:00:31.2]} 29. Qf3
{[%clk 0:00:19.6]} 29... Reb8 {[%clk 0:00:28.6]} 30. e5 {[%clk 0:00:18.4]} 30...
dxe5 {[%clk 0:00:24.9]} 31. fxe5 {[%clk 0:00:18.7]} 31... Ra2 {[%clk 0:00:24.7]}
32. Qxf7+ {[%clk 0:00:18.3]} 32... Kh8 {[%clk 0:00:24.4]} 33. Qxe7 {[%clk
0:00:13.6]} 33... Qc3 {[%clk 0:00:24.6]} 34. Qxc5 {[%clk 0:00:06.3]} 34... Bxe5
{[%clk 0:00:18.7]} 35. Rf8+ {[%clk 0:00:05.9]} 35... Kg7 {[%clk 0:00:18.2]} 36.
Qe7+ {[%clk 0:00:06.1]} 36... Kh6 {[%clk 0:00:17.4]} 37. Qh4+ {[%clk 0:00:03.1]}
37... Kg7 {[%clk 0:00:17.2]} 38. Qe7+ {[%clk 0:00:02.9]} 38... Kh6 {[%clk
0:00:17.9]} 39. Rxb8 {[%clk 0:00:02.1]} 39... Qd4+ {[%clk 0:00:13.2]} 40. Kh1
{[%clk 0:00:02]} 40... Bxb8 {[%clk 0:00:13.3]} 41. Qf8+ {[%clk 0:00:02.5]} 41...
Kh5 {[%clk 0:00:13]} 42. Qxb8 {[%clk 0:00:03.4]} 42... Qe4 {[%clk 0:00:10.5]}
43. Qe5+ {[%clk 0:00:03.7]} 43... Qxe5 {[%clk 0:00:09.8]} 44. Nxe5 {[%clk
0:00:04.6]} 44... Re2 {[%clk 0:00:09.2]} 45. Nf3 {[%clk 0:00:04.7]} 45... Re3
{[%clk 0:00:07.8]} 46. Rd1 {[%clk 0:00:05]} 46... Rd3 {[%clk 0:00:05.8]} 47.
Rxd3 {[%clk 0:00:04.3]} 47... g5 {[%clk 0:00:04]} 48. d6 {[%clk 0:00:04.7]} 1-0

[Event "Early-Titled-Tuesday-Blitz-September-12-2023"]
[Site "Chess.com"]
[Date "2023.09.12"]
[Round "4"]
[White "TigrVShlyape"]
[Black "AlexPapasimakopoulos"]
[Result "1-0"]
[WhiteElo "2957"]
[BlackElo "2771"]
[TimeControl "180+1"]
[EndTime "8:38:45 PDT"]
[Termination "TigrVShlyape won by checkmate"]

1. d4 {[%clk 0:03:00.9]} 1... d5 {[%clk 0:02:59.9]} 2. Bf4 {[%clk 0:02:54.9]}
2... c5 {[%clk 0:03:00]} 3. e3 {[%clk 0:02:44.1]} 3... Nc6 {[%clk 0:03:00.5]} 4.
c3 {[%clk 0:02:43.8]} 4... Qb6 {[%clk 0:03:01.2]} 5. Qb3 {[%clk 0:02:43.1]} 5...
c4 {[%clk 0:03:01.8]} 6. Qc2 {[%clk 0:02:42.9]} 6... e5 {[%clk 0:03:02.3]} 7.
dxe5 {[%clk 0:02:37.7]} 7... Bf5 {[%clk 0:03:02.9]} 8. Qc1 {[%clk 0:02:31.2]}
8... f6 {[%clk 0:03:03.5]} 9. exf6 {[%clk 0:02:27.6]} 9... Nxf6 {[%clk
0:03:04.4]} 10. Nf3 {[%clk 0:02:25.1]} 10... Bc5 {[%clk 0:03:05]} 11. Be2 {[%clk
0:02:23.2]} 11... O-O {[%clk 0:03:04.9]} 12. O-O {[%clk 0:02:19.7]} 12... Nh5
{[%clk 0:03:04.9]} 13. Bg5 {[%clk 0:01:48.8]} 13... h6 {[%clk 0:03:02.7]} 14.
Bh4 {[%clk 0:01:33.3]} 14... g5 {[%clk 0:02:36.9]} 15. Bg3 {[%clk 0:01:29.7]}
15... Nxg3 {[%clk 0:02:33.8]} 16. hxg3 {[%clk 0:01:29.5]} 16... Qc7 {[%clk
0:02:30.4]} 17. Nd4 {[%clk 0:01:22.3]} 17... Nxd4 {[%clk 0:02:16.5]} 18. cxd4
{[%clk 0:01:21.8]} 18... Bd6 {[%clk 0:02:16.1]} 19. Nc3 {[%clk 0:01:21.4]} 19...
Be6 {[%clk 0:02:12.1]} 20. Bf3 {[%clk 0:01:07.5]} 20... Qf7 {[%clk 0:02:10.6]}
21. e4 {[%clk 0:01:05.5]} 21... dxe4 {[%clk 0:01:55.7]} 22. Bxe4 {[%clk
0:01:05.3]} 22... Rad8 {[%clk 0:01:50.1]} 23. Qc2 {[%clk 0:01:02]} 23... a6
{[%clk 0:01:46.8]} 24. a4 {[%clk 0:01:00]} 24... Bb4 {[%clk 0:01:44.8]} 25. Rad1
{[%clk 0:00:58.8]} 25... Bg4 {[%clk 0:01:39.2]} 26. Rd2 {[%clk 0:00:57.6]} 26...
h5 {[%clk 0:01:35.3]} 27. d5 {[%clk 0:00:53.5]} 27... h4 {[%clk 0:01:33.4]} 28.
gxh4 {[%clk 0:00:52]} 28... gxh4 {[%clk 0:01:34.3]} 29. Rd4 {[%clk 0:00:50.1]}
29... Qg7 {[%clk 0:01:23.5]} 30. Rxc4 {[%clk 0:00:47.9]} 30... Bd6 {[%clk
0:01:20.7]} 31. Bh7+ {[%clk 0:00:42]} 31... Kh8 {[%clk 0:01:21]} 32. Qg6 {[%clk
0:00:34.2]} 32... Qxg6 {[%clk 0:01:00]} 33. Bxg6 {[%clk 0:00:33.7]} 33... Bd7
{[%clk 0:01:00.7]} 34. Rxh4+ {[%clk 0:00:32.8]} 34... Kg7 {[%clk 0:01:01.2]} 35.
Bd3 {[%clk 0:00:30.3]} 35... Rh8 {[%clk 0:01:01.2]} 36. Rxh8 {[%clk 0:00:28.8]}
36... Rxh8 {[%clk 0:01:02.1]} 37. g3 {[%clk 0:00:27.8]} 37... Be5 {[%clk
0:00:57.3]} 38. Re1 {[%clk 0:00:24.8]} 38... Re8 {[%clk 0:00:48.1]} 39. Bc2
{[%clk 0:00:20.4]} 39... a5 {[%clk 0:00:42]} 40. Kg2 {[%clk 0:00:19.4]} 40...
Kf6 {[%clk 0:00:32.2]} 41. f4 {[%clk 0:00:19.5]} 41... Bd4 {[%clk 0:00:22.2]}
42. Rxe8 {[%clk 0:00:19.3]} 42... Bxe8 {[%clk 0:00:23.1]} 43. Kf3 {[%clk
0:00:17.7]} 43... Bf7 {[%clk 0:00:22.1]} 44. Bb3 {[%clk 0:00:16.5]} 44... Bg6
{[%clk 0:00:21.9]} 45. Ne4+ {[%clk 0:00:16]} 45... Bxe4+ {[%clk 0:00:21.7]} 46.
Kxe4 {[%clk 0:00:16.1]} 46... Bxb2 {[%clk 0:00:22.3]} 47. g4 {[%clk 0:00:16.5]}
47... Bc1 {[%clk 0:00:20.3]} 48. d6 {[%clk 0:00:16.4]} 48... Ba3 {[%clk
0:00:19.7]} 49. g5+ {[%clk 0:00:17]} 49... Kg7 {[%clk 0:00:18.9]} 50. Ke5 {[%clk
0:00:17.6]} 50... Kf8 {[%clk 0:00:18.7]} 51. Bc4 {[%clk 0:00:17.3]} 51... Bb2+
{[%clk 0:00:18.9]} 52. Ke6 {[%clk 0:00:16.9]} 52... Ke8 {[%clk 0:00:16]} 53. f5
{[%clk 0:00:16.4]} 53... Bc1 {[%clk 0:00:15]} 54. g6 {[%clk 0:00:16.5]} 54...
Bh6 {[%clk 0:00:15.5]} 55. Bb5+ {[%clk 0:00:16.7]} 55... Kd8 {[%clk 0:00:14.3]}
56. f6 {[%clk 0:00:17.3]} 56... Bf8 {[%clk 0:00:14]} 57. g7 {[%clk 0:00:17.7]}
57... b6 {[%clk 0:00:14.7]} 58. gxf8=R# {[%clk 0:00:16.8]} 1-0

[Event "Early-Titled-Tuesday-Blitz-September-12-2023"]
[Site "Chess.com"]
[Date "2023.09.12"]
[Round "4"]
[White "RobertoJBM"]
[Black "Amirreza_p"]
[Result "1-0"]
[WhiteElo "2819"]
[BlackElo "2567"]
[TimeControl "180+1"]
[EndTime "8:38:48 PDT"]
[Termination "RobertoJBM won by resignation"]

1. d4 {[%clk 0:03:00.9]} 1... Nf6 {[%clk 0:02:56.7]} 2. c4 {[%clk 0:03:00.7]}
2... e6 {[%clk 0:02:55.2]} 3. Nf3 {[%clk 0:03:00.6]} 3... d5 {[%clk 0:02:54.6]}
4. Nc3 {[%clk 0:03:00.7]} 4... Bb4 {[%clk 0:02:54.4]} 5. Bg5 {[%clk 0:02:59.5]}
5... h6 {[%clk 0:02:53.6]} 6. Bxf6 {[%clk 0:02:59.3]} 6... Qxf6 {[%clk
0:02:54.5]} 7. Qa4+ {[%clk 0:02:59.2]} 7... Nc6 {[%clk 0:02:54.3]} 8. e3 {[%clk
0:02:59.2]} 8... O-O {[%clk 0:02:53.6]} 9. Rc1 {[%clk 0:02:55.9]} 9... Qe7
{[%clk 0:02:45.9]} 10. a3 {[%clk 0:02:53.1]} 10... Bxc3+ {[%clk 0:02:44.2]} 11.
Rxc3 {[%clk 0:02:54]} 11... a6 {[%clk 0:02:36.4]} 12. cxd5 {[%clk 0:02:51.9]}
12... exd5 {[%clk 0:02:34.9]} 13. Be2 {[%clk 0:02:51.9]} 13... Qd6 {[%clk
0:02:26.3]} 14. O-O {[%clk 0:02:50.7]} 14... Ne7 {[%clk 0:02:25.4]} 15. Ne5
{[%clk 0:02:47.3]} 15... c6 {[%clk 0:02:24]} 16. b4 {[%clk 0:02:41.3]} 16... f6
{[%clk 0:02:22.3]} 17. Nd3 {[%clk 0:02:39.9]} 17... Nf5 {[%clk 0:02:16.2]} 18.
Nc5 {[%clk 0:02:35.3]} 18... Qe7 {[%clk 0:02:14.5]} 19. Bd3 {[%clk 0:02:30.4]}
19... Nd6 {[%clk 0:02:14]} 20. Qc2 {[%clk 0:02:28.8]} 20... f5 {[%clk
0:02:13.5]} 21. g3 {[%clk 0:02:21.9]} 21... g5 {[%clk 0:02:11.5]} 22. Re1 {[%clk
0:02:19.8]} 22... Kh8 {[%clk 0:02:07.5]} 23. Qe2 {[%clk 0:02:17.2]} 23... Be6
{[%clk 0:02:03.5]} 24. Qh5 {[%clk 0:02:13.4]} 24... Kg7 {[%clk 0:01:56.1]} 25.
Rc2 {[%clk 0:01:57.3]} 25... Bf7 {[%clk 0:01:53.2]} 26. Qf3 {[%clk 0:01:55]}
26... Bg6 {[%clk 0:01:48.9]} 27. Qd1 {[%clk 0:01:49]} 27... Qf7 {[%clk
0:01:37.8]} 28. a4 {[%clk 0:01:45.1]} 28... Rae8 {[%clk 0:01:32.8]} 29. Rb2
{[%clk 0:01:38.6]} 29... f4 {[%clk 0:01:29.7]} 30. exf4 {[%clk 0:01:35.5]} 30...
gxf4 {[%clk 0:01:18.4]} 31. Bxg6 {[%clk 0:01:24.4]} 31... Qxg6 {[%clk 0:01:15]}
32. Rbe2 {[%clk 0:01:23.7]} 32... Rxe2 {[%clk 0:00:56.9]} 33. Rxe2 {[%clk
0:01:18.4]} 33... Ne4 {[%clk 0:00:49.1]} 34. Qd3 {[%clk 0:01:06.8]} 34... Nxc5
{[%clk 0:00:35.3]} 35. Qxg6+ {[%clk 0:01:04.8]} 35... Kxg6 {[%clk 0:00:36.2]}
36. bxc5 {[%clk 0:01:01.9]} 36... fxg3 {[%clk 0:00:36]} 37. hxg3 {[%clk
0:01:01.6]} 37... Rf3 {[%clk 0:00:27.9]} 38. Rb2 {[%clk 0:00:56.9]} 38... Rd3
{[%clk 0:00:25.1]} 39. Rxb7 {[%clk 0:00:54.1]} 39... Rxd4 {[%clk 0:00:25.5]} 40.
Rb6 {[%clk 0:00:53.9]} 40... Rxa4 {[%clk 0:00:26]} 41. Rxc6+ {[%clk 0:00:54.3]}
41... Kg5 {[%clk 0:00:26.7]} 42. Rd6 {[%clk 0:00:53.2]} 42... Rd4 {[%clk
0:00:26.3]} 43. Rxa6 {[%clk 0:00:51.5]} 43... Rc4 {[%clk 0:00:26.5]} 44. Rc6
{[%clk 0:00:46.5]} 44... d4 {[%clk 0:00:25.8]} 45. Kg2 {[%clk 0:00:44.5]} 45...
d3 {[%clk 0:00:25.5]} 46. Rd6 {[%clk 0:00:40.3]} 46... Rxc5 {[%clk 0:00:25.3]}
47. Rxd3 {[%clk 0:00:39.9]} 47... Rf5 {[%clk 0:00:26.2]} 48. Rd6 {[%clk
0:00:37.3]} 48... h5 {[%clk 0:00:26.5]} 49. f3 {[%clk 0:00:36.2]} 49... Rf8
{[%clk 0:00:23.5]} 50. f4+ {[%clk 0:00:34.1]} 50... Kf5 {[%clk 0:00:23.6]} 51.
Rh6 {[%clk 0:00:33.4]} 51... Kg4 {[%clk 0:00:18.1]} 52. Rg6+ {[%clk 0:00:33.3]}
52... Kf5 {[%clk 0:00:18.7]} 53. Rg5+ {[%clk 0:00:34.2]} 53... Ke4 {[%clk
0:00:19.1]} 54. Rxh5 {[%clk 0:00:35.1]} 54... Rg8 {[%clk 0:00:19.7]} 55. Re5+
{[%clk 0:00:34.9]} 55... Kd4 {[%clk 0:00:19.5]} 56. Kf3 {[%clk 0:00:35.8]} 56...
Rh8 {[%clk 0:00:19.6]} 57. Re1 {[%clk 0:00:33.2]} 57... Rg8 {[%clk 0:00:19.5]}
58. f5 {[%clk 0:00:33]} 58... Kd5 {[%clk 0:00:18.3]} 59. Kf4 {[%clk 0:00:32.3]}
1-0

[Event "Early-Titled-Tuesday-Blitz-September-12-2023"]
[Site "Chess.com"]
[Date "2023.09.12"]
[Round "4"]
[White "seramoral"]
[Black "abhidabhi"]
[Result "1-0"]
[WhiteElo "2593"]
[BlackElo "2870"]
[TimeControl "180+1"]
[EndTime "8:38:50 PDT"]
[Termination "seramoral won on time"]

1. e4 {[%clk 0:03:00.9]} 1... c5 {[%clk 0:02:58.8]} 2. Nf3 {[%clk 0:02:59]} 2...
d6 {[%clk 0:02:58.8]} 3. d4 {[%clk 0:02:58.7]} 3... cxd4 {[%clk 0:02:58.8]} 4.
Nxd4 {[%clk 0:02:58.3]} 4... Nf6 {[%clk 0:02:59.2]} 5. Nc3 {[%clk 0:02:54.8]}
5... Nc6 {[%clk 0:02:59.3]} 6. Bg5 {[%clk 0:02:47.3]} 6... Bd7 {[%clk 0:02:58]}
7. Qd2 {[%clk 0:02:46.9]} 7... a6 {[%clk 0:02:57]} 8. O-O-O {[%clk 0:02:43.3]}
8... e6 {[%clk 0:02:56.8]} 9. f3 {[%clk 0:02:40.6]} 9... Nxd4 {[%clk 0:02:54.8]}
10. Qxd4 {[%clk 0:02:39.7]} 10... Be7 {[%clk 0:02:51.2]} 11. Kb1 {[%clk
0:02:36]} 11... Qc7 {[%clk 0:02:46.2]} 12. g4 {[%clk 0:02:31.7]} 12... b5 {[%clk
0:02:45.2]} 13. Be3 {[%clk 0:02:26.6]} 13... O-O {[%clk 0:02:24]} 14. g5 {[%clk
0:02:24.3]} 14... Nh5 {[%clk 0:02:22.4]} 15. h4 {[%clk 0:02:22.6]} 15... Rfc8
{[%clk 0:02:21.1]} 16. Qd2 {[%clk 0:02:11.3]} 16... Ng3 {[%clk 0:02:14.2]} 17.
Rg1 {[%clk 0:02:09.8]} 17... Nxf1 {[%clk 0:02:14.2]} 18. Rdxf1 {[%clk
0:02:06.7]} 18... b4 {[%clk 0:02:14.5]} 19. Ne2 {[%clk 0:02:02.7]} 19... Ba4
{[%clk 0:02:08.2]} 20. Rc1 {[%clk 0:01:56.9]} 20... a5 {[%clk 0:02:07.3]} 21. h5
{[%clk 0:01:54.7]} 21... Be8 {[%clk 0:01:59.7]} 22. Nd4 {[%clk 0:01:50.1]} 22...
a4 {[%clk 0:01:53.3]} 23. g6 {[%clk 0:01:41.3]} 23... Bf6 {[%clk 0:01:43.8]} 24.
c3 {[%clk 0:01:33.2]} 24... bxc3 {[%clk 0:01:37.7]} 25. Rxc3 {[%clk 0:01:32.4]}
25... Qb7 {[%clk 0:01:37.4]} 26. gxf7+ {[%clk 0:01:28.5]} 26... Bxf7 {[%clk
0:01:36.3]} 27. h6 {[%clk 0:01:22.7]} 27... Rxc3 {[%clk 0:01:32.5]} 28. Qxc3
{[%clk 0:01:23.3]} 28... Rc8 {[%clk 0:01:32.1]} 29. Qd2 {[%clk 0:01:20.4]} 29...
a3 {[%clk 0:01:18.1]} 30. b3 {[%clk 0:01:17.9]} 30... g6 {[%clk 0:01:08.9]} 31.
Rc1 {[%clk 0:01:15]} 31... d5 {[%clk 0:00:56.2]} 32. Rxc8+ {[%clk 0:01:11.7]}
32... Qxc8 {[%clk 0:00:57.1]} 33. exd5 {[%clk 0:01:05.6]} 33... exd5 {[%clk
0:00:58]} 34. Bg5 {[%clk 0:00:59.1]} 34... Bh8 {[%clk 0:00:46.8]} 35. Qe3 {[%clk
0:00:56.3]} 35... Qd7 {[%clk 0:00:36.6]} 36. Nc2 {[%clk 0:00:52.7]} 36... d4
{[%clk 0:00:35.9]} 37. Qf4 {[%clk 0:00:50.5]} 37... d3 {[%clk 0:00:34]} 38. Nxa3
{[%clk 0:00:46.5]} 38... Qa7 {[%clk 0:00:21.3]} 39. Nc4 {[%clk 0:00:40.1]} 39...
Be6 {[%clk 0:00:12.3]} 40. Qe3 {[%clk 0:00:27.7]} 40... Qd7 {[%clk 0:00:06]} 41.
Qc5 {[%clk 0:00:25.5]} 41... d2 {[%clk 0:00:03.1]} 42. Nxd2 {[%clk 0:00:19.7]}
42... Bd4 {[%clk 0:00:03]} 43. Qa5 {[%clk 0:00:14.7]} 43... Bf5+ {[%clk
0:00:02.8]} 44. Ne4 {[%clk 0:00:09.7]} 44... Qe8 {[%clk 0:00:01.9]} 45. Qd5+
{[%clk 0:00:08.1]} 1-0

[Event "Early-Titled-Tuesday-Blitz-September-12-2023"]
[Site "Chess.com"]
[Date "2023.09.12"]
[Round "4"]
[White "PeshkaCh"]
[Black "ArtemDyachuk"]
[Result "1-0"]
[WhiteElo "2777"]
[BlackElo "2551"]
[TimeControl "180+1"]
[EndTime "8:38:52 PDT"]
[Termination "PeshkaCh won on time"]

1. Nf3 {[%clk 0:03:00.9]} 1... Nf6 {[%clk 0:02:55.8]} 2. d4 {[%clk 0:03:01.3]}
2... d5 {[%clk 0:02:53.5]} 3. c4 {[%clk 0:03:01.8]} 3... c6 {[%clk 0:02:53.7]}
4. e3 {[%clk 0:03:02.2]} 4... Bf5 {[%clk 0:02:52.4]} 5. Bd3 {[%clk 0:03:01.9]}
5... Bxd3 {[%clk 0:02:49]} 6. Qxd3 {[%clk 0:03:02.8]} 6... Qa5+ {[%clk
0:02:46.2]} 7. Nbd2 {[%clk 0:02:59.8]} 7... e6 {[%clk 0:02:42.6]} 8. O-O {[%clk
0:02:59.7]} 8... Nbd7 {[%clk 0:02:40.6]} 9. e4 {[%clk 0:02:59.2]} 9... dxe4
{[%clk 0:02:38.7]} 10. Nxe4 {[%clk 0:03:00.1]} 10... Nxe4 {[%clk 0:02:37.3]} 11.
Qxe4 {[%clk 0:03:01]} 11... Nf6 {[%clk 0:02:35.2]} 12. Qc2 {[%clk 0:03:01]}
12... Qh5 {[%clk 0:02:25.2]} 13. h3 {[%clk 0:02:58.7]} 13... Bd6 {[%clk
0:02:24.7]} 14. Re1 {[%clk 0:02:55.7]} 14... h6 {[%clk 0:01:34.8]} 15. d5 {[%clk
0:02:45.7]} 15... cxd5 {[%clk 0:01:06.4]} 16. Qa4+ {[%clk 0:02:44]} 16... Kf8
{[%clk 0:01:06.5]} 17. cxd5 {[%clk 0:02:37.3]} 17... Nxd5 {[%clk 0:00:59.3]} 18.
Qd7 {[%clk 0:02:36.9]} 18... Bc7 {[%clk 0:00:51.9]} 19. Rd1 {[%clk 0:02:31.7]}
19... Rd8 {[%clk 0:00:34.2]} 20. Qxc7 {[%clk 0:01:59.2]} 20... Nxc7 {[%clk
0:00:35.1]} 21. Rxd8+ {[%clk 0:01:59.7]} 21... Ne8 {[%clk 0:00:35.2]} 22. Be3
{[%clk 0:01:54.8]} 22... f6 {[%clk 0:00:23.1]} 23. Rc1 {[%clk 0:01:44.5]} 23...
Kf7 {[%clk 0:00:21.6]} 24. Rcc8 {[%clk 0:01:41.8]} 24... Qa5 {[%clk 0:00:15.1]}
25. Rd7+ {[%clk 0:01:11.8]} 25... Kg6 {[%clk 0:00:15.2]} 26. Rxb7 {[%clk
0:01:12.2]} 26... Qxa2 {[%clk 0:00:13.5]} 27. Rbb8 {[%clk 0:00:48.3]} 27... Qa4
{[%clk 0:00:11.6]} 28. Nd4 {[%clk 0:00:47.8]} 28... e5 {[%clk 0:00:07.3]} 29.
Nb5 {[%clk 0:00:42.7]} 29... Qd1+ {[%clk 0:00:05.7]} 30. Kh2 {[%clk 0:00:42.7]}
30... Qd7 {[%clk 0:00:06.3]} 31. Nxa7 {[%clk 0:00:35]} 31... f5 {[%clk
0:00:06.6]} 32. Rd8 {[%clk 0:00:19]} 32... Qe7 {[%clk 0:00:05]} 33. Nc6 {[%clk
0:00:17.5]} 33... Qf6 {[%clk 0:00:05.4]} 34. Rbc8 {[%clk 0:00:06]} 34... f4
{[%clk 0:00:05.1]} 35. Bc5 {[%clk 0:00:05.6]} 35... f3 {[%clk 0:00:05]} 36. g3
{[%clk 0:00:05.9]} 36... Kf7 {[%clk 0:00:04.2]} 37. b4 {[%clk 0:00:04.9]} 37...
h5 {[%clk 0:00:03.8]} 38. Rd7+ {[%clk 0:00:03.8]} 38... Kg6 {[%clk 0:00:03.8]}
39. Re7 {[%clk 0:00:03.6]} 39... h4 {[%clk 0:00:03.7]} 40. Rexe8 {[%clk
0:00:03.5]} 40... Rxe8 {[%clk 0:00:03.6]} 41. Rxe8 {[%clk 0:00:04.4]} 41... Qxc6
{[%clk 0:00:03.6]} 42. Rxe5 {[%clk 0:00:03.6]} 42... hxg3+ {[%clk 0:00:02.3]}
43. Kxg3 {[%clk 0:00:03.1]} 43... Qc7 {[%clk 0:00:02.8]} 44. Kf4 {[%clk
0:00:03.3]} 44... Kf6 {[%clk 0:00:02.5]} 45. Bd4 {[%clk 0:00:04]} 45... Qc4
{[%clk 0:00:02.6]} 46. Ke4 {[%clk 0:00:03.9]} 46... Qxb4 {[%clk 0:00:02.4]} 47.
Rb5+ {[%clk 0:00:04.1]} 1-0

[Event "Early-Titled-Tuesday-Blitz-September-12-2023"]
[Site "Chess.com"]
[Date "2023.09.12"]
[Round "4"]
[White "WinstonSilvakov"]
[Black "SamCopeland"]
[Result "1-0"]
[WhiteElo "2203"]
[BlackElo "2305"]
[TimeControl "180+1"]
[EndTime "8:38:54 PDT"]
[Termination "WinstonSilvakov won by resignation"]

1. d4 {[%clk 0:02:15.8]} 1... d5 {[%clk 0:01:59.7]} 2. e3 {[%clk 0:02:07.4]}
2... Nc6 {[%clk 0:01:55.3]} 3. f4 {[%clk 0:02:06.1]} 3... g6 {[%clk 0:01:49.7]}
4. Nf3 {[%clk 0:02:06.3]} 4... Bg7 {[%clk 0:01:49.8]} 5. c4 {[%clk 0:02:04.1]}
5... Nf6 {[%clk 0:01:42.8]} 6. Nc3 {[%clk 0:02:02.8]} 6... Bf5 {[%clk
0:01:35.7]} 7. Be2 {[%clk 0:01:56.3]} 7... O-O {[%clk 0:01:28.1]} 8. O-O {[%clk
0:01:55.7]} 8... e6 {[%clk 0:01:25.9]} 9. Ne5 {[%clk 0:01:55.1]} 9... Ne4 {[%clk
0:01:20.8]} 10. g4 {[%clk 0:01:51.5]} 10... Nxc3 {[%clk 0:01:20.1]} 11. bxc3
{[%clk 0:01:52.4]} 11... Be4 {[%clk 0:01:18.4]} 12. cxd5 {[%clk 0:01:41]} 12...
exd5 {[%clk 0:01:15.8]} 13. Bf3 {[%clk 0:01:39.4]} 13... Na5 {[%clk 0:01:09.5]}
14. Bxe4 {[%clk 0:01:35.1]} 14... dxe4 {[%clk 0:01:10.4]} 15. Qa4 {[%clk
0:01:33.9]} 15... b6 {[%clk 0:01:07.9]} 16. Nc4 {[%clk 0:01:32.5]} 16... Qh4
{[%clk 0:01:00]} 17. g5 {[%clk 0:01:28.4]} 17... Qg4+ {[%clk 0:00:55.5]} 18. Kf2
{[%clk 0:01:07.7]} 18... Nb7 {[%clk 0:00:34.7]} 19. Qd1 {[%clk 0:01:04.5]} 19...
Qh4+ {[%clk 0:00:33.8]} 20. Kg2 {[%clk 0:01:04.2]} 20... f6 {[%clk 0:00:33]} 21.
gxf6 {[%clk 0:01:02.5]} 21... Bxf6 {[%clk 0:00:30.7]} 22. Qe1 {[%clk 0:00:59.5]}
22... Qh5 {[%clk 0:00:28.1]} 23. Ba3 {[%clk 0:00:55.6]} 23... c5 {[%clk
0:00:24.6]} 24. Qg3 {[%clk 0:00:49.2]} 24... Qe2+ {[%clk 0:00:23.8]} 25. Rf2
{[%clk 0:00:42.8]} 25... Qxc4 {[%clk 0:00:23.3]} 26. f5 {[%clk 0:00:43.7]} 26...
Kg7 {[%clk 0:00:19.7]} 27. Rg1 {[%clk 0:00:39.9]} 27... Qf7 {[%clk 0:00:14.3]}
28. Kh1 {[%clk 0:00:39.8]} 28... Rh8 {[%clk 0:00:12.8]} 29. Rfg2 {[%clk
0:00:39.9]} 29... Rag8 {[%clk 0:00:07.9]} 30. fxg6 {[%clk 0:00:39.6]} 30... hxg6
{[%clk 0:00:08.8]} 31. Qf4 {[%clk 0:00:38.8]} 31... Rh6 {[%clk 0:00:06.2]} 32.
Qf5 {[%clk 0:00:35.1]} 32... Kh8 {[%clk 0:00:05.9]} 33. Qf4 {[%clk 0:00:34.2]}
33... Qg7 {[%clk 0:00:04.6]} 34. dxc5 {[%clk 0:00:32.9]} 34... Nxc5 {[%clk
0:00:04.4]} 35. Bxc5 {[%clk 0:00:31.9]} 35... bxc5 {[%clk 0:00:05.3]} 36. Qxe4
{[%clk 0:00:31.7]} 36... Be5 {[%clk 0:00:04.6]} 37. a4 {[%clk 0:00:24]} 37...
Rf8 {[%clk 0:00:03.5]} 38. Rd1 {[%clk 0:00:20.3]} 38... Rf5 {[%clk 0:00:02.8]}
39. Kg1 {[%clk 0:00:16.9]} 39... Rfh5 {[%clk 0:00:01.1]} 40. Rd8+ {[%clk
0:00:16.5]} 40... Kh7 {[%clk 0:00:01.7]} 41. Re8 {[%clk 0:00:14.4]} 41... Rxh2
{[%clk 0:00:01.8]} 42. Rxe5 {[%clk 0:00:12.3]} 42... Rh1+ {[%clk 0:00:01.9]} 43.
Kf2 {[%clk 0:00:11.9]} 43... Qf6+ {[%clk 0:00:02.5]} 44. Qf4 {[%clk 0:00:11.9]}
44... Rf1+ {[%clk 0:00:02.9]} 45. Kxf1 {[%clk 0:00:11.3]} 45... Qxf4+ {[%clk
0:00:02.5]} 46. exf4 {[%clk 0:00:10.8]} 46... Rh1+ {[%clk 0:00:03]} 47. Kf2
{[%clk 0:00:09.5]} 47... Ra1 {[%clk 0:00:02.2]} 48. Rxc5 {[%clk 0:00:09.4]} 1-0